bitfinex/quotes_BTCUSD_20210402
["timestamp","ask_amount","ask_price","bid_price","bid_amount"]
[1617346581362,0.1,59587.0,59585.0,2.08744]
[1617346581560,0.1,59587.0,59586.0,3.28]
[1617346581759,0.006,59589.0,59586.0,3.67994374]
[1617346581959,0.006,59589.0,59588.0,3.08270776]
[1617346582158,0.006,59589.0,59588.0,3.4826515]
[1617346582360,0.006,59589.0,59588.0,3.72770776]
[1617346582561,0.006,59589.0,59588.0,3.76770776]
[1617346582762,0.006,59589.0,59588.0,4.1696515]
[1617346582963,0.006,59589.0,59588.0,4.5567205]
[1617346583160,0.006,59589.0,59588.0,5.0485585]
[1617346588935,0.006,59589.0,59588.0,5.04591403]
[1617346590538,0.006,59589.0,59588.0,4.80591403]
[1617346591138,0.006,59589.0,59588.0,4.94791403]
[1617346592763,0.006,59589.0,59588.0,5.10991403]
[1617346595188,0.006,59589.0,59588.0,5.32444643]
[1617346595389,0.006,59589.0,59588.0,5.66444643]
[1617346596390,0.006,59589.0,59588.0,5.56444643]
[1617346597608,0.006,59589.0,59588.0,5.66444643]
[1617346600455,0.005802,59600.0,59589.0,4.32729927]
[1617346600667,0.005802,59600.0,59599.0,4.02854003]
[1617346600863,0.005802,59600.0,59599.0,5.65173839]
[1617346601251,0.005802,59600.0,59599.0,5.08728343]
[1617346601454,0.005802,59600.0,59599.0,5.86627079]
[1617346602259,0.005802,59600.0,59599.0,5.47920179]
[1617346602461,0.005802,59600.0,59599.0,5.43920179]
[1617346602663,0.005802,59600.0,59599.0,5.52695479]
[1617346603063,0.005802,59600.0,59599.0,5.56695479]
[1617346603467,0.005802,59600.0,59599.0,5.17503643]
[1617346603663,0.005802,59600.0,59599.0,5.56695479]
[1617346604062,0.005802,59600.0,59599.0,5.17503643]
[1617346604263,0.005802,59600.0,59599.0,5.32210543]
[1617346604463,0.005802,59600.0,59599.0,4.93503643]
[1617346604687,0.005802,59600.0,59599.0,4.89503643]
[1617346605086,0.005802,59600.0,59599.0,5.28210543]
[1617346605286,0.005802,59600.0,59599.0,5.32210543]
[1617346605488,0.005802,59600.0,59599.0,2.00503643]
[1617346605691,0.005802,59600.0,59599.0,1.27922403]
[1617346605897,0.005802,59600.0,59599.0,0.67905227]
[1617346606102,0.005802,59600.0,59599.0,0.03]
[1617346606296,0.39484528,59600.0,59599.0,0.03]
[1617346606694,0.44484528,59600.0,59599.0,0.03]
[1617346606890,0.442871,59600.0,59599.0,0.03]
[1617346607715,0.392871,59600.0,59599.0,0.15903916]
[1617346607910,0.005802,59600.0,59599.0,0.19903916]
[1617346608110,0.005802,59600.0,59599.0,1.97903916]
[1617346608310,0.005802,59600.0,59599.0,2.63133843]
[1617346608712,0.005802,59600.0,59599.0,2.67133843]
[1617346609011,0.005802,59600.0,59599.0,3.88133843]
[1617346609207,0.005802,59600.0,59599.0,2.91133843]
[1617346609837,0.005802,59600.0,59599.0,2.87133843]
[1617346611237,0.005802,59600.0,59599.0,3.25840743]
[1617346611432,0.005802,59600.0,59599.0,3.29840743]
[1617346611633,0.005802,59600.0,59599.0,3.25840743]
[1617346611836,0.005802,59600.0,59599.0,3.01840743]
[1617346613864,0.005802,59600.0,59599.0,3.46440743]
[1617346614061,0.005802,59600.0,59599.0,2.63133843]
[1617346614885,0.005802,59600.0,59599.0,3.49133843]
[1617346615095,0.005802,59600.0,59599.0,4.11840743]
[1617346615491,0.005802,59600.0,59599.0,3.25840743]
[1617346615894,0.005802,59600.0,59599.0,4.40840743]
[1617346616490,0.005802,59600.0,59599.0,3.47293983]
[1617346616691,0.005802,59600.0,59599.0,3.25840743]
[1617346616890,0.005802,59600.0,59599.0,4.40840743]
[1617346617289,0.005802,59600.0,59599.0,3.25840743]
[1617346617718,0.005802,59600.0,59599.0,2.87133843]
[1617346617912,0.005802,59600.0,59599.0,3.37133843]
[1617346618516,0.005802,59600.0,59599.0,2.87133843]
[1617346619115,0.000802,59600.0,59599.0,4.02133843]
[1617346619516,0.000802,59600.0,59599.0,4.40840743]
[1617346619714,0.000802,59600.0,59599.0,3.25840743]
[1617346619915,0.000802,59600.0,59599.0,4.24840743]
[1617346620342,0.000802,59600.0,59599.0,3.25840743]
[1617346620742,0.000802,59600.0,59599.0,2.87133843]
[1617346621345,0.000802,59600.0,59599.0,3.25840743]
[1617346621946,0.000802,59600.0,59599.0,4.40840743]
[1617346622964,0.000802,59600.0,59599.0,3.25840743]
[1617346623366,0.000802,59600.0,59599.0,3.41540743]
[1617346623770,0.00164093,59600.0,59599.0,3.41540743]
[1617346623969,0.00164093,59600.0,59599.0,4.51540743]
[1617346624370,0.00164093,59600.0,59599.0,3.17540743]
[1617346625174,0.00164093,59600.0,59599.0,3.04636827]
[1617346625787,0.00164093,59600.0,59599.0,4.15636827]
[1617346625989,0.00164093,59600.0,59599.0,3.04636827]
[1617346627789,0.00164093,59600.0,59599.0,4.19636827]
[1617346628609,0.00164093,59600.0,59599.0,3.04636827]
[1617346628810,0.00164093,59600.0,59599.0,2.88936827]
[1617346629431,0.00164093,59600.0,59599.0,3.12936827]
[1617346629832,0.00164093,59600.0,59599.0,3.66936827]
[1617346630432,0.00164093,59600.0,59599.0,3.12936827]
[1617346630844,0.00164093,59600.0,59599.0,3.83936827]
[1617346631241,0.00164093,59600.0,59599.0,3.12936827]
[1617346631847,0.74514557,59610.0,59600.0,2.93]
[1617346632046,0.74714557,59610.0,59609.0,1.96]
[1617346632246,0.79514557,59610.0,59609.0,0.24]
[1617346632448,0.79514557,59610.0,59609.0,0.03]
[1617346632844,1.18221457,59610.0,59609.0,0.03]
[1617346634460,1.38800592,59610.0,59609.0,0.03]
[1617346635266,1.68300592,59610.0,59609.0,0.03]
[1617346635662,1.73800592,59610.0,59609.0,0.03]
[1617346636695,1.68300592,59610.0,59609.0,0.03]
[1617346636897,1.73800592,59610.0,59609.0,0.03]
[1617346637294,1.93300592,59610.0,59609.0,0.03]
[1617346637497,2.20263592,59610.0,59609.0,0.03]
[1617346637694,2.39763592,59610.0,59609.0,0.03]
[1617346638092,2.23663592,59610.0,59609.0,0.03]
[1617346638710,1.83663592,59610.0,59609.0,0.03]
[1617346638913,1.33800592,59610.0,59609.0,0.03]
[1617346640311,1.43800592,59610.0,59609.0,0.03]
[1617346640710,1.48800592,59610.0,59609.0,0.03]
[1617346640915,1.38800592,59610.0,59609.0,0.03]
[1617346641740,1.33800592,59610.0,59609.0,0.03]
[1617346644169,1.38800592,59610.0,59609.0,0.03]
[1617346647220,1.58300592,59610.0,59609.0,0.03]
[1617346648120,1.68300592,59610.0,59609.0,0.03]
[1617346648918,1.48800592,59610.0,59609.0,0.03]
[1617346649119,1.38800592,59610.0,59609.0,0.03]
[1617346650921,1.33800592,59610.0,59609.0,0.03]
[1617346652337,1.38800592,59610.0,59609.0,0.03]
[1617346653541,1.38300592,59610.0,59609.0,0.03]
[1617346657505,4.46300592,59610.0,59609.0,0.03]
[1617346657705,4.46300592,59610.0,59603.0,0.03]
[1617346657905,0.146955,59606.0,59603.0,0.03]
[1617346658112,3.317069,59604.0,59599.0,0.56]
[1617346658309,3.076955,59600.0,59599.0,0.56]
[1617346658505,3.781955,59600.0,59599.0,0.56]
[1617346658707,1.20077711,59600.0,59599.0,0.56]
[1617346658905,0.24577711,59600.0,59599.0,0.56]
[1617346659379,1.116955,59600.0,59599.0,0.56]
[1617346659828,1.3879414,59600.0,59599.0,0.56]
[1617346660224,0.4679414,59600.0,59599.0,0.56]
[1617346660628,0.466955,59600.0,59599.0,0.56]
[1617346661032,0.46794142,59600.0,59599.0,0.59]
[1617346661233,0.41794142,59600.0,59599.0,0.59]
[1617346661431,0.00098642,59600.0,59599.0,0.59]
[1617346661631,0.00098634,59605.0,59599.0,0.59]
[1617346661829,0.00098634,59607.0,59604.0,1.4]
[1617346662027,0.00098634,59607.0,59605.0,0.03]
[1617346662467,0.00098634,59607.0,59606.0,0.03]
[1617346662663,0.30294034,59607.0,59606.0,0.03]
[1617346662864,0.35294034,59607.0,59606.0,0.03]
[1617346663067,0.35294034,59607.0,59605.0,0.03]
[1617346663068,2.157069,59606.0,59605.0,0.03]
[1617346663469,2.417069,59606.0,59605.0,0.03]
[1617346663666,0.997069,59606.0,59605.0,0.03]
[1617346663866,0.747069,59606.0,59605.0,0.03]
[1617346664062,0.647069,59606.0,59605.0,0.03]
[1617346666268,0.64785754,59606.0,59605.0,0.03]
[1617346667474,0.64884334,59606.0,59605.0,0.03]
[1617346668089,0.64785754,59606.0,59605.0,0.02423447]
[1617346668291,0.64785754,59606.0,59605.0,0.03]
[1617346671918,0.59785754,59606.0,59605.0,0.03]
[1617346673549,0.64785754,59606.0,59605.0,0.03]
[1617346674623,0.59785754,59606.0,59605.0,0.03]
[1617346676219,0.64785754,59606.0,59605.0,0.03]
[1617346690373,0.63365754,59606.0,59605.0,0.03]
[1617346690580,0.59785754,59606.0,59605.0,0.03]
[1617346690976,0.21078854,59606.0,59605.0,0.03]
[1617346691178,0.21078854,59606.0,59605.0,0.67]
[1617346691377,0.00078854,59606.0,59605.0,0.67]
[1617346691777,0.00078854,59606.0,59605.0,0.03]
[1617346692783,0.00078854,59606.0,59605.0,1.4373428]
[1617346692990,0.00078854,59606.0,59605.0,1.59848827]
[1617346693178,0.00078854,59606.0,59605.0,4.38848827]
[1617346693378,0.00078854,59606.0,59605.0,4.50956117]
[1617346693578,0.00177579,59606.0,59605.0,4.50956117]
[1617346694191,0.00177579,59606.0,59605.0,1.95956117]
[1617346694393,0.00177579,59606.0,59605.0,2.29521117]
[1617346694591,0.00177579,59606.0,59605.0,3.29521117]
[1617346694794,0.00177579,59606.0,59605.0,2.68712953]
[1617346694991,0.00177579,59606.0,59605.0,2.13421117]
[1617346696816,0.00177579,59606.0,59605.0,2.01313827]
[1617346697424,0.00177579,59606.0,59605.0,1.57313827]
[1617346697615,0.00177579,59606.0,59605.0,1.18606927]
[1617346698217,0.00177579,59606.0,59605.0,1.57313827]
[1617346698420,0.00078854,59606.0,59605.0,1.57313827]
[1617346699018,0.00078854,59606.0,59605.0,2.37813827]
[1617346699246,0.00078854,59606.0,59605.0,1.77813827]
[1617346700343,0.00078854,59606.0,59605.0,1.57313827]
[1617346701765,0.00078854,59606.0,59605.0,1.18606927]
[1617346702366,0.00078854,59606.0,59605.0,1.57313827]
[1617346702969,0.00078854,59606.0,59605.0,2.21313827]
[1617346703166,0.00078854,59606.0,59605.0,1.57313827]
[1617346706843,0.00078854,59606.0,59605.0,1.18606927]
[1617346708644,0.00078854,59606.0,59605.0,1.57313827]
[1617346708843,0.00078854,59606.0,59605.0,1.88313827]
[1617346711448,0.00078854,59606.0,59605.0,1.57313827]
[1617346712048,0.00078854,59606.0,59605.0,1.18606927]
[1617346712273,0.00078854,59606.0,59605.0,1.57313827]
[1617346712471,0.00078854,59606.0,59605.0,1.175839]
[1617346712673,0.00078854,59606.0,59605.0,1.18606927]
[1617346713275,0.00078854,59606.0,59605.0,0.78877]
[1617346714897,0.79093411,59610.0,59606.0,2.5]
[1617346715099,0.79093411,59610.0,59609.0,0.03]
[1617346716904,0.79093411,59610.0,59609.0,0.025]
[1617346717101,0.79093411,59610.0,59609.0,0.03]
[1617346717301,0.77593411,59610.0,59609.0,2.82]
[1617346717531,0.77593411,59610.0,59609.0,1.337589]
[1617346717727,0.77593411,59610.0,59609.0,0.43052]
[1617346718533,0.77593411,59610.0,59609.0,0.03]
[1617346719128,0.76593411,59610.0,59609.0,0.03]
[1617346719328,0.74514557,59610.0,59609.0,0.03]
[1617346721149,0.79514557,59610.0,59609.0,0.03]
[1617346721752,0.79613331,59610.0,59609.0,0.03]
[1617346723177,1.46925557,59610.0,59609.0,0.03]
[1617346723374,1.85632457,59610.0,59609.0,0.03]
[1617346723780,1.89132457,59610.0,59609.0,0.03]
[1617346724375,2.14312357,59610.0,59609.0,0.03]
[1617346724575,2.14312357,59610.0,59600.0,0.163775]
[1617346724576,0.916955,59608.0,59607.0,0.03]
[1617346724777,0.951955,59608.0,59607.0,0.03]
[1617346724974,1.196955,59608.0,59607.0,0.03]
[1617346725174,0.426955,59608.0,59607.0,0.03]
[1617346725397,0.416955,59608.0,59607.0,0.03]
[1617346725599,0.416955,59608.0,59600.0,0.163775]
[1617346725600,0.741955,59608.0,59606.0,0.03]
[1617346725802,0.664069,59607.0,59606.0,0.03]
[1617346726005,0.799069,59607.0,59606.0,0.03]
[1617346726199,0.699069,59607.0,59606.0,0.03]
[1617346726798,0.697069,59607.0,59606.0,0.03]
[1617346731249,0.797069,59607.0,59606.0,0.03]
[1617346731451,0.88354834,59607.0,59605.0,0.03]
[1617346731655,2.661955,59606.0,59605.0,0.03]
[1617346731848,3.176955,59606.0,59605.0,0.03]
[1617346732046,3.476955,59606.0,59605.0,0.03]
[1617346732451,3.281955,59606.0,59605.0,0.03]
[1617346732658,4.341955,59606.0,59605.0,0.03]
[1617346732855,4.491955,59606.0,59605.0,0.03]
[1617346733059,4.491955,59606.0,59600.0,0.263775]
[1617346733283,3.084,59601.0,59600.0,0.263775]
[1617346733483,3.364,59601.0,59600.0,0.263775]
[1617346733683,4.469,59601.0,59600.0,0.263775]
[1617346733878,4.569,59601.0,59600.0,0.263775]
[1617346734689,5.369,59601.0,59600.0,0.263775]
[1617346734895,5.869,59601.0,59600.0,0.263775]
[1617346735684,6.206069,59601.0,59600.0,0.263775]
[1617346738429,6.052069,59601.0,59600.0,0.263775]
[1617346739226,6.05274589,59601.0,59600.0,0.263775]
[1617346740026,6.31545238,59601.0,59600.0,0.263775]
[1617346740830,6.05373142,59601.0,59600.0,0.263775]
[1617346741260,5.35274589,59601.0,59600.0,0.263775]
[1617346741657,5.51474589,59601.0,59600.0,0.263775]
[1617346742069,2.93,59600.0,59577.0,0.03]
[1617346742263,0.27060696,59599.0,59574.0,0.03]
[1617346742463,0.27060696,59599.0,59574.0,0.032]
[1617346742464,0.002,59589.0,59574.0,0.032]
[1617346742660,0.387069,59580.0,59574.0,0.032]
[1617346742862,0.25196,59577.0,59574.0,0.032]
[1617346743061,0.146955,59575.0,59574.0,0.032]
[1617346743259,0.231955,59575.0,59574.0,0.032]
[1617346745277,0.181955,59575.0,59574.0,0.032]
[1617346747402,0.231955,59575.0,59574.0,0.032]
[1617346748404,0.181955,59575.0,59574.0,0.032]
[1617346749644,0.18261359,59575.0,59574.0,0.032]
[1617346750246,0.33261359,59575.0,59574.0,0.032]
[1617346750847,0.33261359,59575.0,59574.0,0.0305]
[1617346751049,0.23261359,59575.0,59574.0,0.032]
[1617346751248,0.33261359,59575.0,59574.0,0.032]
[1617346751445,0.23261359,59575.0,59574.0,0.032]
[1617346753477,0.33261359,59575.0,59574.0,0.032]
[1617346756274,0.33261359,59575.0,59574.0,0.03]
[1617346758109,0.52761359,59575.0,59574.0,0.03]
[1617346758917,0.33261359,59575.0,59574.0,0.03]
[1617346759535,0.52761359,59575.0,59574.0,0.03]
[1617346760936,1.02761359,59575.0,59574.0,0.03]
[1617346761545,0.83261359,59575.0,59574.0,0.03]
[1617346764153,1.06822055,59575.0,59574.0,0.03]
[1617346764825,0.83261359,59575.0,59574.0,0.03]
[1617346765622,1.02761359,59575.0,59574.0,0.03]
[1617346766418,1.0451345,59575.0,59574.0,0.03]
[1617346766618,0.8501345,59575.0,59574.0,0.03]
[1617346766825,2.157069,59574.0,59573.0,0.03]
[1617346767023,0.674046,59574.0,59573.0,0.03]
[1617346767219,0.774046,59574.0,59573.0,0.03]
[1617346768023,0.774046,59574.0,59572.0,0.03]
[1617346768224,2.091955,59573.0,59572.0,0.03]
[1617346768422,0.541955,59573.0,59572.0,0.03]
[1617346768627,0.591955,59573.0,59572.0,0.03]
[1617346770836,0.59261178,59573.0,59572.0,0.03]
[1617346771633,0.82732157,59573.0,59572.0,0.03]
[1617346771834,0.59261178,59573.0,59572.0,0.03]
[1617346773058,0.82821874,59573.0,59572.0,0.03]
[1617346773258,1.32821874,59573.0,59572.0,0.03]
[1617346773654,1.09261178,59573.0,59572.0,0.03]
[1617346776100,3.99078178,59573.0,59572.0,0.03]
[1617346776489,0.387069,59569.0,59567.0,0.03]
[1617346776688,3.44756196,59568.0,59567.0,0.03]
[1617346776890,1.41756196,59568.0,59567.0,0.03]
[1617346777088,1.026955,59568.0,59567.0,0.03]
[1617346777288,1.278957,59568.0,59567.0,0.03]
[1617346778106,2.398957,59568.0,59567.0,0.03]
[1617346778306,2.693957,59568.0,59567.0,0.03]
[1617346778709,1.573957,59568.0,59567.0,0.03]
[1617346779306,1.378957,59568.0,59567.0,0.03]
[1617346780929,1.573957,59568.0,59567.0,0.03]
[1617346781130,1.378957,59568.0,59567.0,0.03]
[1617346785780,0.878957,59568.0,59567.0,0.03]
[1617346786179,0.778957,59568.0,59567.0,0.03]
[1617346786378,0.77961025,59568.0,59567.0,0.03]
[1617346786581,0.48461025,59568.0,59567.0,0.03]
[1617346786781,0.98461025,59568.0,59567.0,0.03]
[1617346788404,1.17961025,59568.0,59567.0,0.03]
[1617346788605,1.29576025,59568.0,59567.0,0.03]
[1617346789609,1.39576025,59568.0,59567.0,0.03]
[1617346789806,1.59076025,59568.0,59567.0,0.03]
[1617346792033,0.1,59567.0,59565.0,0.03]
[1617346792234,0.674083,59566.0,59565.0,0.03]
[1617346792436,1.274083,59566.0,59565.0,0.03]
[1617346792634,1.324083,59566.0,59565.0,0.03]
[1617346793032,0.824083,59566.0,59565.0,0.03]
[1617346794651,0.724083,59566.0,59565.0,0.03]
[1617346795666,0.824083,59566.0,59565.0,0.03]
[1617346795856,0.899133,59566.0,59565.0,0.03]
[1617346796060,1.32973996,59566.0,59565.0,0.03]
[1617346796295,0.146955,59562.0,59556.0,0.03]
[1617346796494,0.037,59561.0,59555.0,0.03]
[1617346796691,0.387069,59557.0,59555.0,0.03]
[1617346796889,3.014013,59556.0,59555.0,0.03]
[1617346797096,3.114013,59556.0,59555.0,0.03]
[1617346797690,3.614013,59556.0,59555.0,0.03]
[1617346798485,1.034013,59556.0,59555.0,0.03]
[1617346799717,0.934013,59556.0,59555.0,0.03]
[1617346800114,1.034013,59556.0,59555.0,0.03]
[1617346800710,0.534013,59556.0,59555.0,0.03]
[1617346801530,0.729013,59556.0,59555.0,0.03]
[1617346804764,0.729013,59556.0,59555.0,1.92]
[1617346804765,0.476955,59556.0,59555.0,1.92]
[1617346804970,0.035,59556.0,59555.0,2.39884]
[1617346805165,0.035,59562.0,59555.0,1.785909]
[1617346805365,0.03598883,59562.0,59561.0,2.19]
[1617346805566,0.03598883,59562.0,59561.0,0.03]
[1617346806163,0.035,59562.0,59561.0,0.03]
[1617346806364,0.03598881,59562.0,59561.0,0.03]
[1617346806560,0.01098881,59562.0,59561.0,0.03]
[1617346806787,0.00098881,59562.0,59561.0,0.03]
[1617346806984,0.252001,59563.0,59561.0,0.03]
[1617346807184,0.252001,59563.0,59562.0,1.69]
[1617346807383,0.252001,59563.0,59562.0,0.03]
[1617346807581,0.63907,59563.0,59562.0,0.03]
[1617346807981,0.78407,59563.0,59562.0,0.03]
[1617346810099,0.532069,59563.0,59562.0,0.03]
[1617346810496,0.387069,59563.0,59562.0,0.03]
[1617346812358,0.387069,59563.0,59562.0,0.032]
[1617346812959,0.00164152,59568.0,59562.0,0.55264091]
[1617346813167,0.00164152,59568.0,59567.0,2.95]
[1617346813363,0.00164152,59568.0,59567.0,3.277]
[1617346813364,0.05144815,59568.0,59567.0,3.277]
[1617346813564,0.00065325,59568.0,59567.0,4.317]
[1617346813772,0.07,59576.0,59568.0,3.92]
[1617346813971,0.07,59576.0,59575.0,0.03]
[1617346814167,0.00197624,59580.0,59575.0,5.30566389]
[1617346814168,0.00098812,59580.0,59575.0,5.30566389]
[1617346814366,0.00098812,59580.0,59579.0,3.337069]
[1617346814561,0.00098812,59580.0,59579.0,4.77436827]
[1617346814776,0.00098803,59584.0,59583.0,3.337069]
[1617346814974,0.00197606,59586.0,59585.0,2.94901199]
[1617346815175,0.00197601,59587.0,59585.0,5.16628663]
[1617346815376,0.00296402,59589.0,59588.0,3.55889]
[1617346815572,0.00296402,59589.0,59588.0,5.07716]
[1617346815775,0.0029639,59591.0,59590.0,0.387069]
[1617346815977,0.03951831,59601.0,59599.0,0.37051258]
[1617346816175,0.03951729,59603.0,59599.0,5.77067331]
[1617346816373,0.03951577,59606.0,59599.0,5.56950807]
[1617346816775,0.03951451,59607.0,59599.0,4.56950807]
[1617346816970,0.03951451,59607.0,59599.0,4.60950807]
[1617346817171,0.74514557,59610.0,59599.0,4.60950807]
[1617346817172,0.03951437,59608.0,59599.0,5.60950807]
[1617346817377,0.03951437,59608.0,59599.0,4.60950807]
[1617346817578,0.03951437,59608.0,59599.0,5.60950807]
[1617346817775,0.03951437,59608.0,59599.0,4.60950807]
[1617346818179,0.03951323,59609.0,59599.0,4.60950807]
[1617346818383,0.74514557,59610.0,59599.0,4.60950807]
[1617346819580,0.74514557,59610.0,59599.0,5.60950807]
[1617346820210,0.74514557,59610.0,59599.0,4.60950807]
[1617346820408,0.74514557,59610.0,59599.0,5.60950807]
[1617346820614,0.74514557,59610.0,59599.0,5.65950807]
[1617346820812,0.74514557,59610.0,59599.0,6.01467331]
[1617346821010,0.77089356,59600.0,59599.0,6.04651407]
[1617346821212,0.07089356,59600.0,59599.0,6.34651407]
[1617346821410,0.04449146,59600.0,59599.0,6.34651407]
[1617346821612,0.74514557,59610.0,59600.0,3.92]
[1617346821816,0.74514557,59610.0,59609.0,3.47297406]
[1617346822012,0.74514557,59610.0,59609.0,3.85998006]
[1617346822412,0.74514557,59610.0,59609.0,4.02298006]
[1617346822636,0.74514557,59610.0,59609.0,5.3331453]
[1617346823634,0.74514557,59610.0,59609.0,2.4131453]
[1617346823835,0.74514557,59610.0,59609.0,1.4581453]
[1617346824636,0.74514557,59610.0,59609.0,2.5781453]
[1617346825655,0.74514557,59610.0,59609.0,3.1281453]
[1617346825855,0.74514557,59610.0,59609.0,2.0081453]
[1617346826653,0.74014557,59610.0,59609.0,4.9281453]
[1617346826857,0.74014557,59610.0,59609.0,2.8781453]
[1617346827053,0.74014557,59610.0,59609.0,2.0081453]
[1617346827457,0.74014557,59610.0,59609.0,1.8451453]
[1617346828281,0.74014557,59610.0,59609.0,1.45322694]
[1617346828484,0.74014557,59610.0,59609.0,0.9081393]
[1617346828882,0.74014557,59610.0,59609.0,1.2951453]
[1617346829481,0.74014557,59610.0,59609.0,2.6830953]
[1617346829682,0.74014557,59610.0,59609.0,1.3630953]
[1617346831509,0.74014557,59610.0,59609.0,2.3080953]
[1617346832109,0.74014557,59610.0,59609.0,1.9260953]
[1617346832314,0.74014557,59610.0,59609.0,1.1820836]
[1617346832514,0.74014557,59610.0,59609.0,0.42191836]
[1617346832712,0.74085001,59610.0,59609.0,0.03]
[1617346833534,0.74085001,59610.0,59609.0,0.0335]
[1617346833938,0.74085001,59610.0,59609.0,0.42442444]
[1617346834136,0.74085001,59610.0,59609.0,0.81143044]
[1617346834335,0.74085001,59610.0,59609.0,0.98643044]
[1617346834536,0.74085001,59610.0,59609.0,2.97643044]
[1617346834735,0.74085001,59610.0,59609.0,3.49159568]
[1617346834934,0.74085001,59610.0,59609.0,3.53159568]
[1617346835957,0.74085001,59610.0,59609.0,1.54159568]
[1617346836157,0.74085001,59610.0,59609.0,1.42680124]
[1617346836361,0.74085001,59610.0,59609.0,1.26680124]
[1617346838439,0.74085001,59610.0,59609.0,3.44851924]
[1617346839039,0.74085001,59610.0,59609.0,3.8404376]
[1617346839439,0.74085001,59610.0,59609.0,1.9104376]
[1617346839890,0.74085001,59610.0,59609.0,1.9504376]
[1617346840290,0.74085001,59610.0,59609.0,2.1044376]
[1617346840500,0.74085001,59610.0,59609.0,3.1044376]
[1617346840937,0.74085001,59610.0,59609.0,2.1044376]
[1617346841324,0.74085001,59610.0,59609.0,2.9944376]
[1617346841524,0.74085001,59610.0,59609.0,2.1044376]
[1617346842328,0.74085001,59610.0,59609.0,3.3344376]
[1617346842726,0.74685001,59610.0,59609.0,2.1044376]
[1617346843327,0.74685001,59610.0,59609.0,2.7544376]
[1617346843736,0.74685001,59610.0,59609.0,2.1044376]
[1617346844335,0.74685001,59610.0,59609.0,3.8844376]
[1617346844734,0.74085001,59610.0,59609.0,3.8444376]
[1617346845142,1.001e-05,59610.0,59609.0,4.8844376]
[1617346845347,0.0014,59619.0,59615.0,2.93]
[1617346845348,0.0006,59617.0,59615.0,2.93]
[1617346845542,0.0014,59619.0,59615.0,2.93]
[1617346845543,0.0012,59620.0,59617.0,3.1755406]
[1617346845745,0.0014,59637.0,59619.0,1.667006]
[1617346845746,0.0008,59623.0,59619.0,1.667006]
[1617346845942,0.0008,59623.0,59622.0,3.57962874]
[1617346846172,0.0008,59623.0,59622.0,5.26937398]
[1617346846369,0.0008,59623.0,59622.0,6.26937398]
[1617346846567,0.0014,59633.0,59622.0,6.36937398]
[1617346846772,0.0014,59626.0,59625.0,3.347006]
[1617346846974,0.0108,59628.0,59627.0,0.03]
[1617346847170,0.0108,59628.0,59627.0,4.61340531]
[1617346847367,0.0108,59628.0,59627.0,5.37111531]
[1617346847568,0.0108,59628.0,59627.0,6.37111531]
[1617346847770,0.0014,59633.0,59629.0,0.72729927]
[1617346847771,0.0012,59630.0,59629.0,0.72729927]
[1617346847972,0.0012,59630.0,59629.0,4.58247051]
[1617346848174,0.0012,59630.0,59629.0,5.58247051]
[1617346848367,0.0012,59630.0,59629.0,4.92730527]
[1617346848569,0.0012,59630.0,59629.0,4.88730527]
[1617346848782,0.0012,59630.0,59629.0,4.92730527]
[1617346848987,0.0012,59630.0,59629.0,4.98730527]
[1617346849187,0.0012,59630.0,59629.0,5.24247051]
[1617346849385,0.0012,59630.0,59629.0,6.34247051]
[1617346849595,0.0014,59633.0,59630.0,3.51]
[1617346849788,0.0014,59633.0,59632.0,3.502006]
[1617346849991,0.00367273,59641.0,59633.0,3.92]
[1617346849992,0.0012,59638.0,59633.0,3.92]
[1617346850194,0.0014,59644.0,59637.0,1.99477614]
[1617346850391,0.0014,59644.0,59642.0,0.03]
[1617346850592,0.0004,59643.0,59642.0,3.92268306]
[1617346850788,0.00327273,59652.0,59642.0,3.92268306]
[1617346850996,0.00101819,59653.0,59651.0,0.10779972]
[1617346851189,0.41101819,59653.0,59652.0,0.917006]
[1617346851417,0.41101819,59653.0,59652.0,1.97217124]
[1617346853218,0.41101819,59653.0,59652.0,1.117006]
[1617346853418,0.41101819,59653.0,59652.0,0.03]
[1617346853620,0.41101819,59653.0,59652.0,0.53]
[1617346853818,0.51101819,59653.0,59652.0,0.03]
[1617346854039,0.79802419,59653.0,59652.0,0.03]
[1617346854239,0.7986708,59653.0,59652.0,0.03]
[1617346854635,0.4116648,59653.0,59652.0,0.03]
[1617346854926,0.3966648,59653.0,59652.0,0.03]
[1617346855523,0.7786708,59653.0,59652.0,0.03]
[1617346856129,0.3916648,59653.0,59652.0,0.03]
[1617346856726,0.3866648,59653.0,59652.0,0.03600503]
[1617346856936,2.96,59652.0,59650.0,4.03e-06]
[1617346857133,0.883584,59651.0,59650.0,4.03e-06]
[1617346857327,1.17361438,59651.0,59650.0,4.03e-06]
[1617346857528,1.34061438,59651.0,59650.0,4.03e-06]
[1617346857729,1.44061438,59651.0,59650.0,4.03e-06]
[1617346857927,1.215584,59651.0,59650.0,4.03e-06]
[1617346858330,1.205584,59651.0,59650.0,4.03e-06]
[1617346859347,1.25085801,59651.0,59650.0,4.03e-06]
[1617346859546,1.233304,59651.0,59650.0,4.03e-06]
[1617346860148,1.283304,59651.0,59650.0,4.03e-06]
[1617346860346,1.438304,59651.0,59650.0,4.03e-06]
[1617346860547,1.28398684,59651.0,59650.0,4.03e-06]
[1617346860947,1.12898684,59651.0,59650.0,4.03e-06]
[1617346861146,1.17898684,59651.0,59650.0,4.03e-06]
[1617346861971,1.33898684,59651.0,59650.0,4.03e-06]
[1617346862373,1.23898684,59651.0,59650.0,4.03e-06]
[1617346863173,1.23898684,59651.0,59650.0,0.00350403]
[1617346863377,1.16898684,59651.0,59650.0,0.03350403]
[1617346863774,1.26898684,59651.0,59650.0,0.03350403]
[1617346863974,1.10228346,59651.0,59650.0,0.03350403]
[1617346864175,3.92228346,59651.0,59650.0,0.00350403]
[1617346864592,4.31579346,59651.0,59650.0,0.00350403]
[1617346864994,4.31654344,59651.0,59650.0,0.00350403]
[1617346865394,4.38654344,59651.0,59650.0,0.00350403]